Workbook

Sheet F0060-BOQ (hidden)
A1: ITEM | B1: PAYMENT | C1: DESCRIPTION | D1: UNIT | E1: QTY | F1: RATE | G1: AMOUNT
A2: 1 | C2: SECTION 1: PRELIMINARY AND GENERAL
A3: 1.1 | B3: SABS 1200 A | C3: FIXED COST ITEMS
A4: 1.1.1 | B4: 8.3.1 | C4: Contractual Requirements | D4: Sum | E4: 1.00 | G4: =E4*F4 -> 0
B5: SABS 1200 AB | C5: Establish facilities on site
B6: 8.3.2.1 | C6: a) Facilities for Engineer
A7: 1.1.2 | B7: PS 7 | C7: Site office, conference room, car port, toilet facilities and office furniture | D7: Prov Sum | E7: 1.00 | F7: 40,000.00 | G7: =E7*F7 -> 40,000.00
A8: 1.1.3 | B8: PSAB 1 | C8: Survey equipment | D8: Sum | E8: 1.00 | G8: 0
C9: Resident Engineer : Accomodation | D9: Prov Sum | E9: 1.00 | F9: 50,000.00 | G9: 50,000.00
C10: Resident Engineer : Cell phone for site purposes | D10: Prov Sum | E10: 1.00 | F10: 20,000.00 | G10: 20,000.00
C11: Asbuilt data collection by profesional surveyor | D11: Prov Sum | E11: 1.00 | F11: 50,000.00 | G11: 50,000.00
A12: 1.1.4 | C12: One Contract Notice Board | D12: Sum | E12: 1.00 | G12: 0
B13: 8.3.2.2 | C13: b) Facilities for Contractor
A14: 1.1.5 | C14: Offices and stores, workshop, housing, ablution- and latrine facilities, plant and tools | D14: Sum | E14: 1.00 | G14: =E14*F14 -> 0
A15: 1.1.6 | C15: Water supply, electrical power, reticulation of water and access to site | D15: Sum | E15: 1.00 | G15: =E15*F15 -> 0
A16: 1.1.7 | B16: PS 10 | C16: Conformity with RDP requirements | D16: Sum | E16: 1.00 | G16: =E16*F16 -> 0
A17: 1.1.8 | B17: 8.3.3 | C17: Additional Fixed Cost liabilities (particulars to be supplied)
C18: i) ................................. | D18: Sum | E18: 1.00 | G18: =E18*F18 -> 0
C19: ii) ................................. | D19: Sum | E19: 1.00 | G19: 0
C20: iii) ................................. | D20: Sum | E20: 1.00 | G20: 0
C21: iv) ................................. | D21: Sum | E21: 1.00 | G21: 0
C22: v) ................................. | D22: Sum | E22: 1.00 | G22: 0
A23: 1.1.9 | B23: 8.3.4 | C23: Removal of site facilities | D23: Sum | E23: 1.00 | G23: 0
A24: 1.1.10 | C24: Allowance for OHS & Environmental management | D24: Prov Sum | E24: 1.00 | F24: 100,000.00 | G24: 100,000.00
A25: 1.1.11 | C25: Allowance for Accredited Training | D25: Prov Sum | E25: 1.00 | F25: 500,000.00 | G25: 500,000.00
A26: 1.2 | B26: 8.40 | C26: TIME RELATED ITEMS
A27: 1.2.1 | B27: 8.4.1 | C27: Contractual Requirements | D27: Sum | E27: 1.00 | G27: =E27*F27 -> 0
B28: 8.4.2 | C28: Operate and maintain facilities on site
B29: 8.4.2.1 | C29: a) Facilities for Engineer for duration of construction (SABS 1200 AB)
A30: 1.2.2 | B30: PS 7 | C30: Site office, conference room, car port, toilet facilities and office furniture | D30: Prov Sum | E30: 1.00 | F30: 50,000.00 | G30: =E30*F30 -> 50,000.00
A31: 1.2.3 | B31: PSAB 1 | C31: Survey equipment and survey assistant | D31: Sum | E31: 1.00 | G31: =E31*F31 -> 0
A32: 1.2.4 | B32: PSAB 1 | C32: One Contract Notice Board | D32: Sum | E32: 1.00 | G32: =E32*F32 -> 0
B33: 8.4.2.2 | C33: b) Facilities for Contractor for duration of construction
A34: 1.2.6 | C34: Offices and stores, workshop, housing, ablution- and latrine facilities, plant and equipment | D34: Sum | E34: 1.00 | G34: =E34*F34 -> 0
A35: 1.2.7 | C35: Water supply, electrical power, reticulation of water and access to site | D35: Sum | E35: 1.00 | G35: 0
A36: 1.2.8 | B36: 8.4.3 | C36: Construction Supervision for the duration of the contract | D36: Sum | E36: 1.00 | G36: 0
A37: 1.2.9 | B37: 8.4.4 | C37: Company and head office overhead costs | D37: Sum | E37: 1.00 | G37: 0
A38: 1.2.10 | B38: PS 10 | C38: Conformity with RDP requirements | D38: Sum | E38: 1.00 | G38: 0
A39: 1.2.11 | B39: 8.4.5 | C39: Additional Time Related Items (particulars to be provided) | D39: Sum | E39: 1.00 | G39: 0
C40: i) ............................ | D40: Sum | E40: 1.00 | G40: 0
C41: ii) ............................ | D41: Sum | E41: 1.00 | G41: 0
C42: iii) ............................ | D42: Sum | E42: 1.00 | G42: 0
C43: iv) ............................ | D43: Sum | E43: 1.00 | G43: 0
C44: v) ............................ | D44: Sum | E44: 1.00 | G44: 0
A45: 1.2.12 | C45: Allowance for OHS & Environmental management | D45: Prov Sum | E45: 1.00 | F45: 60,000.00 | G45: 60,000.00
A46: 1.2.13 | C46: Allowance for CLO | D46: Prov Sum | E46: 1.00 | F46: 120,000.00 | G46: 120,000.00
A47: 1.3 | C47: TEMPORARY WORK
A48: 1.3.1 | B48: 8.8.1 | C48: Construction and maintenance of all access roads and work for the duration of the contract | D48: Sum | E48: 1.00 | G48: =E48*F48 -> 0
A49: 1.4 | C49: CONTROL TESTING
A50: 1.4.1 | C50: Preliminary Sum allowed for laboratory tests by an independent laboratory when required by the Engineer | D50: Prov Sum | E50: 1.00 | F50: 50,000.00 | G50: =E50*F50 -> 50,000.00
A51: 1.4.2 | C51: Percentage add on to Item 1.5.1 for overheads, administration and profit | D51: % | E51: =G50 -> 50000.00 | G51: =E51*F51 -> 0
A52: TOTAL SECTION 1 | I52: =SUM(G7:G50) -> 1,040,000.00
A53: 2 | C53: SECTION 2: BNR REACTOR
A54: 2.1 | B54: SANS 1200 DA | C54: EXCAVATION
A55: 2.1.1 | B55: 8.3.1 | C55: a) Remove top soil to a nominal depth of 150mm, stockpile and maintain | D55: m2 | E55: 2500.00 | G55: =E55*F55 -> 0
A56: 2.1.2 | C56: b) Excavate in all materials and use for embankments or backfill or dispose, as ordered | D56: m3 | E56: =2200*1.5 -> 3300.00 | G56: =E56*F56 -> 0
A57: 2.1.3 | C57: c) Extra over for
A58: 2.1.3.1 | C58: 1) Intermediate excavation | D58: m3 | E58: =E56*0.15 -> 495.00 | G58: =E58*F58 -> 0
A59: 2.1.3.2 | C59: 2) Hard rock excavation | D59: m3 | E59: =E56*0.1 -> 330.00 | G59: =E59*F59 -> 0
A60: 2.1.4 | B60: 8.3.2 | C60: Restricted Excavation
A61: 2.1.6 | B61: 8.3.4 | C61: Importing of materials from Commercial sources or from borrow pits for foundations
A62: 2.1.6.1 | C62: G7 / GS / 15 / 12 Compacted to 93% of Mod. AASHTO Density (Layer thickness: 150mm) | D62: m3 | E62: =E55*0.5 -> 1250.00 | G62: =E62*F62 -> 0
A63: 2.2 | B63: SANS 1200 G | C63: FORMWORK
C64: Note: 50mm chamfers to all corners included in formwork rates
A65: 2.2.1 | B65: 8.2.1 | C65: Rough vertical formwork to a degree of Accuracy III
A66: 2.2.1.1 | C66: BNR walls | D66: m2 | E66: 1050.00 | G66: =F66*E66 -> 0
A67: 2.2.1.2 | C67: Floor 0,4m high | D67: m2 | E67: 70.00 | G67: 0
A68: 2.2.4 | B68: 8.2.2 | C68: Smooth vertical formwork to a degree of Accuracy II
A69: 2.2.4.1 | C69: BNR walls | D69: m2 | E69: 3080.00 | G69: 0
A70: 2.2.4.2 | C70: 0.4m high floor | D70: m2 | E70: 180.00 | G70: 0
A71: 2.2.4.3 | C71: Columns | D71: m2 | E71: 230.00 | G71: 0
A72: 2.2.4.4 | C72: 0.3m high walk way side | D72: m2 | E72: 70.00 | G72: 0
A73: 2.2.4.5 | C73: 0.3m high platform side | D73: m2 | E73: 40.00 | G73: 0
A74: 2.2.4.6 | C74: Channel & Overflow Boxes | D74: m2 | E74: 30.00 | G74: 0
A75: 2.2.4.7 | C75: Stair Risers | D75: m2 | E75: 15.00 | G75: 0
A76: 2.2.4.8 | C76: Stair Sides | D76: m2 | E76: 10.00 | G76: 0
A77: 2.2.5 | C77: Smooth horizontal formwork to a degree of Accuracy II
A78: 2.2.5.1 | C78: Walkway | D78: m2 | E78: 120.00 | G78: 0
A79: 2.2.5.2 | C79: Platform | D79: m2 | E79: 85.00 | G79: 0
A80: 2.2.5.3 | C80: Channel | D80: m2 | E80: 45.00 | G80: 0
A81: 2.2.5.4 | C81: Stairs | D81: m2 | E81: 15.00 | G81: 0
A82: 2.2.6 | C82: Inclined Smooth formwork to a degree of Accuracy II
A83: 2.2.6.1 | C83: Inclined wall fillets | D83: m2 | E83: 350.00 | G83: 0
A84: 2.2.7 | B84: 8.2.6 | C84: Box Out Holes/Form Voids
A85: 2.2.7.1 | C85: a) Small, circular, of diameter up to and including 0,35 m (irrespective of depth) | D85: No | E85: 10.00 | G85: 0
A86: 2.2.7.2 | C86: b) Small, square, of aera up to and including 0,1 m² (irrespective of depth) | D86: No | E86: 10.00 | G86: 0
A87: 2.2.7.3 | C87: c) Large, circular, of diameter over 0,35 m up to and including 0,1 m² (irrespective of depth) | D87: No | E87: 10.00 | G87: 0
A88: 2.2.7.4 | C88: d) Large, square, of aera over 0,1m² and up and including to 0,5 m ² (irrespective of depth) | D88: No | E88: 10.00 | G88: 0
A89: 2.3 | C89: REINFORCEMENT
A90: 2.3.1 | B90: 8.3.1 | C90: Mild Steel Bars
A91: 2.3.1.1 | C91: R10 | D91: t | E91: 10.50 | G91: =F91*E91 -> 0
A92: 2.3.2 | B92: 8.3.1 | C92: High Tensile Steel
A93: 2.3.2.1 | C93: Y 10 | D93: t | E93: 20.20 | G93: =F93*E93 -> 0
A94: 2.3.2.2 | C94: Y 12 | D94: t | E94: 30.30 | G94: 0
A95: 2.3.2.3 | C95: Y 16 | D95: t | E95: 20.20 | G95: 0
A96: 2.3.2.4 | C96: Y 20 | D96: t | E96: 30.50 | G96: 0
A97: 2.3.2.5 | C97: Y 25 | D97: t | E97: 40.40 | G97: 0
A98: 2.3.2.6 | C98: Y 32 | D98: t | E98: 50.40 | G98: 0
A99: 2.3.2.7 | C99: Y 40 | D99: t | E99: 0.00 | G99: Rate Only
A100: 2.4 | C100: CONCRETE
A101: 2.4.1 | B101: 8.4.1 | C101: Prescribed Concrete Mix
A102: 2.4.1.1 | C102: 1:4 Cement/stone (19mm) no-fines concrete to subsoil drain | D102: m3 | E102: 325.00 | G102: =F102*E102 -> 0
A103: 2.4.2 | B103: 8.4.2 | C103: Blinding Layer in Concrete
A104: 2.4.2.1 | C104: Strength concrete 15 MPa/19mm in 50mm blinding layer on excavated surfaces | D104: m2 | E104: 1050.00 | G104: =F104*E104 -> 0
A105: 2.4.3 | B105: 8.4.3 | C105: Structural Concrete (30 MPa)
A106: 2.4.3.1 | C106: BNR floor | D106: m3 | E106: 750.00 | G106: =F106*E106 -> 0
A107: 2.4.3.2 | C107: BNR walls | D107: m3 | E107: 565.00 | G107: 0
A108: 2.4.3.3 | C108: Mixer platform | D108: m3 | E108: 25.00 | G108: 0
A109: 2.4.3.4 | C109: Walkways | D109: m3 | E109: 40.00 | G109: 0
A110: 2.4.3.5 | C110: Columns & Wall panels | D110: m3 | E110: 120.00 | G110: 0
A111: 2.4.3.6 | C111: Overflow box & Channels | D111: m3 | E111: 60.00 | G111: 0
A112: 2.4.3.7 | C112: Steps | D112: m3 | E112: 10.00 | G112: 0
A113: 2.4.4 | B113: 8.4.4 | C113: Unformed Surface Finishes
A114: 2.4.4.1 | C114: a) Wood-floated finish (Top of Walls) | D114: m2 | E114: 110.00 | G114: =F114*E114 -> 0
A115: 2.4.4.2 | C115: b) Steel-floated finish (Walkways; 50mm Blinding) | D115: m2 | E115: 2150.00 | G115: =F115*E115 -> 0
A116: 2.4.4.3 | C116: c) Power-floated finish (BNR Floor) | D116: m2 | E116: 1870.00 | G116: =F116*E116 -> 0
A117: 2.5 | B117: 8.5 | C117: JOINTS
A118: 7.5.1 | C118: 300mm wide Sikadur combiflex system by Sika (Alternative approved products may also be used) | D118: m | E118: 280.00 | G118: =E118*F118 -> 0
A119: 7.5.2 | C119: Bond breaker 2 coats white PVA paint | D119: m | E119: 280.00 | G119: =E119*F119 -> 0
A120: 7.5.3 | C120: 10mm x 10mm Polysulfide joint sealant with primer complete with 10 x 10 form | D120: m | E120: 280.00 | G120: =E120*F120 -> 0
A121: 7.5.4 | C121: 230mm rearguard centre bulb PVC waterstop by Jayco (Alternative approved products may also be used) | D121: m | E121: 280.00 | G121: =E121*F121 -> 0
A122: 2.6 | C122: PIPEWORK
A123: 2.6.1 | C123: Supply and install mild steel connector pipework to BNR Reactor, including, puddle pipes flange adaptors, etc complete. All steel pipes to be hot diped galvanised coated. | D123: Prov Sum | E123: 1.00 | F123: 500,000.00 | G123: =E123*F123 -> 500,000.00
A124: TOTAL SECTION 2
A125: 3 | C125: SECTION 3: CLARIFIERS
A126: 3.1 | B126: SANS 1200 DA | C126: EXCAVATION
A127: 3.1.1 | B127: 8.3.1 | C127: a) Remove top soil to a nominal depth of 150mm, stockpile and maintain | D127: m2 | E127: 490.00 | G127: =E127*F127 -> 0
A128: 3.1.2 | C128: b) Excavate in all materials and use for embankments or backfill or dispose, as ordered | D128: m3 | E128: 1160.00 | G128: =E128*F128 -> 0
A129: 3.1.3 | C129: c) Extra over for
A130: 3.1.3.1 | C130: 1) Intermediate excavation | D130: m3 | E130: 175.00 | G130: =E130*F130 -> 0
A131: 3.1.3.2 | C131: 2) Hard rock excavation | D131: m3 | E131: 120.00 | G131: =E131*F131 -> 0
A132: 3.1.4 | B132: 8.3.2 | C132: Restricted Excavation
A133: 3.1.4.1 | C133: a) Excavate for restricted foundations, footings and trenches in all materials and use for backfill or embankment or dispose | D133: m3 | E133: 500.00 | G133: =E133*F133 -> 0
A134: 3.1.4.2 | C134: b) Extra over for
A135: 3.1.4.2.1 | C135: 1) Intermediate excavation | D135: m3 | E135: 75.00 | G135: =E135*F135 -> 0
A136: 3.1.4.2.2 | C136: 2) Hard rock excavation | D136: m3 | E136: 50.00 | G136: =E136*F136 -> 0
A137: 3.1.6 | B137: 8.3.4 | C137: Importing of materials from Commercial sources or from borrow pits for foundations
A138: 3.1.6.1 | C138: G7 / GS / 15 / 12 Compacted to 93% of Mod. AASHTO Density (Layer thickness: 150mm) | D138: m3 | E138: 490.00 | G138: =E138*F138 -> 0
A139: 3.2 | B139: SANS 1200 G | C139: FORMWORK
C140: Note: 50mm chamfers to all corners included in formwork rates
A141: 3.2.1 | B141: 8.2.1 | C141: Rough vertical formwork to a degree of Accuracy III
A142: 3.2.1.1 | C142: 1.1m high floor side curved to radius 1750 | D142: m2 | E142: 30.00 | G142: =F142*E142 -> 0
A143: 3.2.1.2 | C143: 0.3m high to inside footing curved to radius 7200 | D143: m2 | E143: 30.00 | G143: =F143*E143 -> 0
A144: 3.2.2 | B144: 8.2.2 | C144: Smooth vertical formwork to a degree of Accuracy II
A145: 3.2.2.1 | C145: 0.3m high to outside footing curved to Radius 8200 | D145: m2 | E145: 30.00 | G145: =F145*E145 -> 0
A146: 3.2.2.2 | C146: 0.85m high to floor side curved to Radius 1500 | D146: m2 | E146: 30.00 | G146: 0
A147: 3.2.2.3 | C147: 4.56m high to outside wallg curved to Radius 7850 | D147: m2 | E147: 490.00 | G147: 0
A148: 3.2.2.4 | C148: 4.2m high to inside wall curved to Radius 7550 | D148: m2 | E148: 450.00 | G148: 0
A149: 3.2.2.5 | C149: 0.37m high to canal overflow wall curved to Radius 7150 | D149: m2 | E149: 50.00 | G149: 0
A150: 3.2.2.6 | C150: 0.37m high to canal overflow wall curved to Radius 7000 | D150: m2 | E150: 50.00 | G150: 0
A151: 3.2.2.7 | C151: 0.2m high to scour box floor | D151: m2 | E151: 10.00 | G151: 0
A152: 3.2.2.8 | C152: 5.37m high to scour box walls | D152: m2 | E152: 120.00 | G152: 0
A153: 3.2.2.9 | C153: 0.9m high to overflow box | D153: m2 | E153: 20.00 | G153: 0
A154: 3.2.3 | C154: Smooth horizontal formwork to a degree of Accuracy II
A155: 3.2.3.1 | C155: Canal overflow soffit | D155: m2 | E155: 50.00 | G155: =F155*E155 -> 0
A156: 3.2.3.2 | C156: Overflow box soffit | D156: m2 | E156: 10.00 | G156: =F156*E156 -> 0
A157: 3.2.4 | C157: Inclined Smooth formwork to a degree of Accuracy II
A158: 3.2.4.1 | C158: Canal overflow lip curved to Radius 7000 | D158: m2 | E158: 50.00 | G158: =F158*E158 -> 0
A159: 3.2.5 | B159: 8.2.6 | C159: Box Out Holes/Form Voids
A160: 3.2.5.1 | C160: a) Small, circular, of diameter up to and including 0,35 m (irrespective of depth) | D160: No | E160: 10.00 | G160: =F160*E160 -> 0
A161: 3.2.5.2 | C161: b) Small, square, of aera up to and including 0,1 m² (irrespective of depth) | D161: No | E161: 8.00 | G161: =F161*E161 -> 0
A162: 3.2.5.3 | C162: c) Large, circular, of diameter over 0,35 m up to and including 0,1 m² (irrespective of depth) | D162: No | E162: 10.00 | G162: =F162*E162 -> 0
A163: 3.2.5.4 | C163: d) Large, square, of aera over 0,1m² and up and including to 0,5 m ² (irrespective of depth) | D163: No | E163: 6.00 | G163: =F163*E163 -> 0
A164: 3.3 | C164: REINFORCEMENT
A165: 3.3.1 | B165: 8.3.1 | C165: Mild Steel Bars
A166: 3.3.1.1 | C166: R10 | D166: t | E166: 2.50 | G166: =F166*E166 -> 0
A167: 3.3.2 | B167: 8.3.1 | C167: High Tensile Steel
A168: 3.3.2.1 | C168: Y 10 | D168: t | E168: 4.50 | G168: =F168*E168 -> 0
A169: 3.3.2.2 | C169: Y 12 | D169: t | E169: 6.50 | G169: 0
A170: 3.3.2.3 | C170: Y 16 | D170: t | E170: 6.50 | G170: 0
A171: 3.3.2.4 | C171: Y 20 | D171: t | E171: 8.50 | G171: 0
A172: 3.3.2.5 | C172: Y 25 | D172: t | E172: 8.50 | G172: 0
A173: 3.3.2.6 | C173: Y 32 | D173: t | E173: 6.50 | G173: 0
A174: 3.3.2.7 | C174: Y 40 | D174: t | E174: 0.00 | G174: Rate Only
A175: 3.4 | C175: CONCRETE
A176: 3.4.1 | B176: 8.4.1 | C176: Prescribed Concrete Mix
A177: 3.4.1.1 | C177: 1:4 Cement/stone (19mm) no-fines concrete to subsoil drain | D177: m3 | E177: 190.00 | G177: =F177*E177 -> 0
A178: 3.4.2 | B178: 8.4.2 | C178: Blinding Layer in Concrete
A179: 3.4.2.1 | C179: Strength concrete 15 MPa/19mm in 50mm blinding layer on excavated surfaces | D179: m2 | E179: 425.00 | G179: =F179*E179 -> 0
A180: 3.4.3 | B180: 8.4.3 | C180: Structural Concrete (30 MPa)
A181: 3.4.3.1 | C181: Floor | D181: m3 | E181: 120.00 | G181: =F181*E181 -> 0
A182: 3.4.3.2 | C182: Footing | D182: m3 | E182: 40.00 | G182: 0
A183: 3.4.3.3 | C183: Center Column | D183: m3 | E183: 10.00 | G183: 0
A184: 3.4.3.4 | C184: Walls | D184: m3 | E184: 140.00 | G184: 0
A185: 3.4.3.5 | C185: Canal Overflow | D185: m3 | E185: 30.00 | G185: 0
A186: 3.4.3.6 | C186: Scour box & Overflow box | D186: m3 | E186: 10.00 | G186: 0
A187: 3.4.4 | B187: 8.4.4 | C187: Unformed Surface Finishes
A188: 3.4.4.1 | C188: a) Wood-floated finish (Top of Walls) | D188: m2 | E188: 230.00 | G188: =F188*E188 -> 0
A189: 3.4.4.2 | C189: b) Steel-floated finish (Walkways; 50mm Blinding) | D189: m2 | E189: 925.00 | G189: =F189*E189 -> 0
A190: 3.5 | C190: PIPEWORK
A191: 3.5.1 | C191: Supply and install mild steel connector pipework to BNR Reactor, including, puddle pipes flange adaptors, etc complete. All steel pipes to be hot diped galvanised coated. | D191: Prov Sum | E191: 2.00 | F191: 350,000.00 | G191: =E191*F191 -> 700,000.00
A192: TOTAL SECTION 3
A193: 4 | C193: SECTION 4: NEW BOX COLLECTING SEWAGE FROM SLUDGE DRYING BEDS & SPLITTER BOX
A194: 4.1.1 | B194: SANS 1200 DA | C194: EXCAVATION
A195: 4.1.1.1 | B195: 8.3.1 | C195: a) Remove top soil to a nominal depth of 150mm, stockpile and maintain | D195: m2 | E195: 75.00 | G195: =E195*F195 -> 0
A196: 4.1.1.2 | C196: b) Excavate in all materials and use for embankments or backfill or dispose, as ordered | D196: m3 | E196: 82.50 | G196: =E196*F196 -> 0
A197: 4.1.1.3 | C197: c) Extra over for | E197: 0.00 | G197: 0
A198: 4.1.1.3.1 | C198: 1) Intermediate excavation | D198: m3 | E198: 22.50 | G198: 0
A199: 4.1.1.3.2 | C199: 2) Hard rock excavation | D199: m3 | E199: 22.50 | G199: 0
A200: 4.1.1.4 | B200: 8.3.2 | C200: Restricted Excavation | E200: 0.00 | G200: 0
... 1028 more rows

Sheet Extras (hidden)
A1: PROJECT F0060-02:CONSTRUCTION OF THE EXTENSION OF WASTE WATER TREATMENT WORKS AT NAMAHADI/FRANKFORT | D1: Certificate 01 | H1: PAGE B 1
A3: ITEM | D3: QUANTITY COMPLETED | G3: UNIT RATE | H3: VALUE
A4: NO. | B4: DESCRIPTION | C4: DATE | D4: TO LAST | E4: TO THIS | F4: UNIT | G4: OR | H4: OF
C5: APPROVED | D5: CERTIFICATE | E5: CERTIFICATE | G5: LUMP SUM | H5: WORK
A12: TOTAL VALUE OF EXTRA WORK - TO SUMMARY PAGE | H12: =SUM(H6:H10) -> 0.00
B14: We hereby certify that the above figures are correct | D14: Payment Authorization
B17: _____________________________
B18: CONTRACTOR | D18: PMU(As per delegation) | F18: Date
B21: _____________________________
B22: PROJECT CONSULTANT | D22: MUNICIPAL MANAGER | F22: Date

Sheet UNPRICED BOQ
A1: Bill of Quantities: Construction for the Extension of Waste Water Treatment Works at Namahadi/Frankfort (Phase 2)
A2: ITEM | B2: PAYMENT | C2: DESCRIPTION | D2: UNIT | E2: QTY | F2: RATE | G2: AMOUNT
A3: 1 | C3: SECTION 1: PRELIMINARY AND GENERAL
A4: 1.1 | B4: SABS 1200 A | C4: FIXED COST ITEMS
A5: 1.1.1 | B5: 8.3.1 | C5: Contractual Requirements | D5: Sum | E5: 1.00 | G5: =E5*F5 -> 0
B6: SABS 1200 AB | C6: Establish facilities on site
B7: 8.3.2.1 | C7: a) Facilities for Engineer
A8: 1.1.2 | B8: PS 7 | C8: Site office, conference room, car port, toilet facilities and office furniture | D8: Prov Sum | E8: 1.00 | F8: 40,000.00 | G8: =E8*F8 -> 40,000.00
A9: 1.1.3 | B9: PSAB 1 | C9: Survey equipment | D9: Sum | E9: 1.00 | G9: 0
C10: Resident Engineer : Accommodation | D10: Prov Sum | E10: 1.00 | F10: 50,000.00 | G10: 50,000.00
C11: Resident Engineer : Cell phone for site purposes | D11: Prov Sum | E11: 1.00 | F11: 20,000.00 | G11: 20,000.00
C12: As built data collection by professional surveyor | D12: Prov Sum | E12: 1.00 | G12: 0
A13: 1.1.4 | C13: One Contract Notice Board | D13: Sum | E13: 1.00 | G13: 0
B14: 8.3.2.2 | C14: b) Facilities for Contractor
A15: 1.1.5 | C15: Offices and stores, workshop, housing, ablution- and latrine facilities, plant and tools | D15: Sum | E15: 1.00 | G15: =E15*F15 -> 0
A16: 1.1.6 | C16: Water supply, electrical power, reticulation of water and access to site | D16: Sum | E16: 1.00 | G16: 0
A17: 1.1.7 | B17: PS 10 | C17: Conformity with RDP requirements | D17: Sum | E17: 1.00 | G17: 0
A18: 1.1.8 | B18: 8.3.3 | C18: Additional Fixed Cost liabilities (particulars to be supplied)
C19: i) ................................. | D19: Sum | E19: 1.00 | G19: 0
C20: ii) ................................. | D20: Sum | E20: 1.00 | G20: 0
C21: iii) ................................. | D21: Sum | E21: 1.00 | G21: 0
C22: iv) ................................. | D22: Sum | E22: 1.00 | G22: 0
C23: v) ................................. | D23: Sum | E23: 1.00 | G23: 0
A24: 1.1.9 | B24: 8.3.4 | C24: Removal of site facilities | D24: Sum | E24: 1.00 | G24: 0
A25: 1.1.10 | C25: Allowance for OHS & Environmental management | D25: Sum | E25: 1.00 | G25: 0
A27: 1.2 | B27: 8.40 | C27: TIME RELATED ITEMS
A28: 1.2.1 | B28: 8.4.1 | C28: Contractual Requirements | D28: Sum | E28: 1.00 | G28: 0
B29: 8.4.2 | C29: Operate and maintain facilities on site
B30: 8.4.2.1 | C30: a) Facilities for Engineer for duration of construction (SABS 1200 AB)
A31: 1.2.2 | B31: PS 7 | C31: Site office, conference room, car port, toilet facilities and office furniture | D31: Prov Sum | E31: 1.00 | F31: 50,000.00 | G31: 50,000.00
A32: 1.2.3 | B32: PSAB 1 | C32: Survey equipment and survey assistant | D32: Sum | E32: 1.00 | G32: 0
A33: 1.2.4 | B33: PSAB 1 | C33: One Contract Notice Board | D33: Sum | E33: 1.00 | G33: 0
B34: 8.4.2.2 | C34: b) Facilities for Contractor for duration of construction | G34: 0
A35: 1.2.6 | C35: Offices and stores, workshop, housing, ablution- and latrine facilities, plant and equipment | D35: Sum | E35: 1.00 | G35: 0
A36: 1.2.7 | C36: Water supply, electrical power, reticulation of water and access to site | D36: Sum | E36: 1.00 | G36: 0
A37: 1.2.8 | B37: 8.4.3 | C37: Construction Supervision for the duration of the contract | D37: Sum | E37: 1.00 | G37: 0
A38: 1.2.9 | B38: 8.4.4 | C38: Company and head office overhead costs | D38: Sum | E38: 1.00 | G38: 0
A39: 1.2.10 | B39: PS 10 | C39: Conformity with RDP requirements | D39: Sum | E39: 1.00 | G39: 0
A40: 1.2.11 | B40: 8.4.5 | C40: Additional Time Related Items (particulars to be provided) | D40: Sum | E40: 1.00 | G40: 0
A41: 1.2.12 | C41: Skill Development ; Accredited Training Programme: Unskilled | D41: Sum | E41: 1.00 | G41: 0
A42: 1.2.13 | C42: Skill Development : Work Integrated Learning: Undergraduate | D42: Sum | E42: 1.00 | G42: 0
A43: 1.2.14 | C43: Skill Development : Professionalism Programme Graduate | D43: Sum | E43: 1.00 | G43: 0
A44: 1.2.15 | C44: Participation of Local Enterprises; Work allocated to local enterprise that are 51% Black Owned | D44: Sum | E44: 1.00 | G44: 0
A45: 1.2.16 | C45: Social Responsibilities ; Community Development Initiative | D45: Sum | E45: 1.00 | G45: 0
A46: 1.2.17 | C46: Allowance for OHS & Environmental management for the Duration of the project | D46: Sum | E46: 1.00 | G46: 0
A47: 1.2.18 | C47: Allowance for CLO | D47: Prov Sum | E47: 1.00 | F47: 300,000.00 | G47: 300,000.00
A48: 1.3 | C48: TEMPORARY WORK
A49: 1.3.1 | B49: 8.8.1 | C49: Construction and maintenance of all access roads and work for the duration of the contract | D49: Sum | E49: 1.00 | G49: =E49*F49 -> 0
A50: 1.4 | C50: CONTROL TESTING
A51: 1.4.1 | C51: Preliminary Sum allowed for laboratory tests by an independent laboratory when required by the Engineer | D51: Prov Sum | E51: 1.00 | F51: 50,000.00 | G51: 50,000.00
A52: 1.4.2 | C52: Percentage add on to Item 1.5.1 for overheads, administration and profit | D52: % | E52: 50000.00 | G52: 0
A53: TOTAL SECTION 1 | G53: =SUM(G5:G52) -> 510,000.00
A54: 2 | C54: SECTION 2: BNR REACTOR
A55: 2.1 | B55: SANS 1200 DA | C55: EXCAVATION
A56: 2.1.0 | B56: 8.3.1 | C56: Clear and Grub the site to the satisfaction of the Engineer
A57: 2,1,1 | C57: Removal of Sludge as instructed by Engineer/client within radius of 4km and stockpile
A58: 2.1.2 | B58: 8.3.1 | C58: a) Remove top soil to a nominal depth of 150mm, stockpile and maintain | D58: m2 | E58: 188.25 | G58: =E58*F58 -> 0
A59: 2.1.3 | C59: b) Excavate in all materials and use for embankments or backfill or dispose, as ordered by Engineer | D59: m3 | E59: 1000.00 | G59: 0
A60: 2.1.4 | C60: c) Extra over for | G60: 0
A61: 2.1.4.1 | C61: 1) Intermediate excavation | D61: m3 | E61: 105.00 | G61: 0
A62: 2.1.4.2 | C62: 2) Hard rock excavation | D62: m3 | E62: 66.92 | G62: 0
A63: 2.1.5 | B63: 8.3.2 | C63: Restricted Excavation | G63: 0
A64: 2.1.6 | B64: 8.3.4 | C64: Importing of materials from Commercial sources or from borrow pits for foundations | G64: 0
A65: 2.1.6.1 | C65: G7 / GS / 15 / 12 Compacted to 93% of Mod. AASHTO Density (Layer thickness: 150mm)
A66: 2.2 | B66: SANS 1200 G | C66: FORMWORK
C67: Note: 50mm chamfers to all corners included in formwork rates | G67: =E67*F67 -> 0
A68: 2.2.1 | B68: 8.2.1 | C68: Rough vertical formwork to a degree of Accuracy III | G68: 0
A69: 2.2.1.1 | C69: BNR walls | D69: m2 | E69: 831.79 | G69: 0
A70: 2.2.1.2 | C70: Floor 0,4m high | D70: m2 | E70: 3.07 | G70: 0
A71: 2.2.4 | B71: 8.2.2 | C71: Smooth vertical formwork to a degree of Accuracy II | G71: 0
A72: 2.2.4.1 | C72: BNR walls | D72: m2 | E72: 810.89 | G72: 0
A73: 2.2.4.2 | C73: 0.4m high floor | D73: m2 | E73: 180.00 | G73: 0
A74: 2.2.4.3 | C74: Columns | D74: m2 | G74: 0
A75: 2.2.4.4 | C75: 0.3m high walk way side | D75: m2 | E75: 70.00 | G75: 0
A76: 2.2.4.5 | C76: 0.3m high platform side | D76: m2 | E76: 40.00 | G76: 0
A77: 2.2.4.6 | C77: Channel & Overflow Boxes | D77: m2 | E77: 30.00 | G77: 0
A78: 2.2.4.7 | C78: Stair Risers | D78: m2 | E78: 15.00 | G78: 0
A79: 2.2.4.8 | C79: Stair Sides | D79: m2 | E79: 10.00 | G79: 0
A80: 2.2.5 | C80: Smooth horizontal formwork to a degree of Accuracy II | G80: 0
A81: 2.2.5.1 | C81: Walkway | D81: m2 | E81: 120.00 | G81: 0
A82: 2.2.5.2 | C82: Platform | D82: m2 | E82: 85.00 | G82: 0
A83: 2.2.5.3 | C83: Channel | D83: m2 | E83: 45.00 | G83: 0
A84: 2.2.5.4 | C84: Stairs | D84: m2 | E84: 15.00 | G84: 0
A85: 2.2.6 | C85: Inclined Smooth formwork to a degree of Accuracy II | G85: 0
A86: 2.2.6.1 | C86: Inclined wall fillets | D86: m2 | E86: 350.00 | G86: 0
A87: 2.2.7 | B87: 8.2.6 | C87: Box Out Holes/Form Voids | G87: 0
A88: 2.2.7.1 | C88: a) Small, circular, of diameter up to and including 0,35 m (irrespective of depth) | D88: No | E88: 10.00 | G88: 0
A89: 2.2.7.2 | C89: b) Small, square, of area up to and including 0,1 m² (irrespective of depth) | D89: No | E89: 10.00 | G89: 0
A90: 2.2.7.3 | C90: c) Large, circular, of diameter over 0,35 m up to and including 0,1 m² (irrespective of depth) | D90: No | E90: 10.00 | G90: 0
A91: 2.2.7.4 | C91: d) Large, square, of area over 0,1m² and up and including to 0,5 m ² (irrespective of depth) | D91: No | E91: 10.00 | G91: 0
A92: 2.3 | C92: REINFORCEMENT | G92: 0
A93: 2.3.1 | B93: 8.3.1 | C93: Mild Steel Bars | G93: 0
A94: 2.3.1.1 | C94: R10 | D94: t | E94: 9.72 | G94: 0
A95: 2.3.2 | B95: 8.3.1 | C95: High Tensile Steel | G95: 0
A96: 2.3.2.1 | C96: Y 10 | D96: t | E96: 17.71 | G96: 0
A97: 2.3.2.2 | C97: Y 12 | D97: t | E97: 5.00 | G97: 0
A98: 2.3.2.3 | C98: Y 16 | D98: t | E98: 14.72 | G98: 0
A99: 2.3.2.4 | C99: Y 20 | D99: t | E99: 19.90 | G99: 0
A100: 2.3.2.5 | C100: Y 25 | D100: t | E100: 13.91 | G100: 0
A101: 2.3.2.6 | C101: Y 32 | D101: t | E101: 0.38 | G101: 0
A102: 2.3.2.7 | C102: Y 40 | G102: 0
A103: 2.4 | C103: CONCRETE | G103: 0
A104: 2.4.1 | B104: 8.4.1 | C104: Prescribed Concrete Mix | G104: 0
A105: 2.4.1.1 | C105: 1:4 Cement/stone (19mm) no-fines concrete to subsoil drain | G105: 0
A106: 2.4.2 | B106: 8.4.2 | C106: Blinding Layer in Concrete | G106: 0
A107: 2.4.2.1 | C107: Strength concrete 15 MPa/19mm in 50mm blinding layer on excavated surfaces | D107: m2 | E107: 1050.00 | G107: 0
A108: 2.4.3 | B108: 8.4.3 | C108: Structural Concrete (30 MPa/20mm)) | G108: 0
A109: 2.4.3.1 | C109: BNR floor
A110: 2.4.3.2 | C110: BNR walls | D110: m3 | E110: 36.36 | G110: =E110*F110 -> 0
A111: 2.4.3.3 | C111: Mixer platform | D111: m3 | E111: 25.00 | G111: 0
A112: 2.4.3.4 | C112: Walkways | D112: m3 | E112: 40.00 | G112: 0
A113: 2.4.3.5 | C113: Columns & Wall panels | D113: m3 | E113: 64.86 | G113: 0
A114: 2.4.3.6 | C114: Overflow box & Channels | D114: m3 | E114: 60.00 | G114: 0
A115: 2.4.3.7 | C115: Steps | D115: m3 | E115: 10.00 | G115: 0
A116: 2.4.4 | B116: 8.4.4 | C116: Unformed Surface Finishes | G116: 0
A117: 2.4.4.1 | C117: a) Wood-floated finish (Top of Walls) | D117: m2 | E117: 190.00 | G117: 0
A118: 2.4.4.2 | C118: b) Steel-floated finish (Walkways; 50mm Blinding) | D118: m2 | E118: 2150.00 | G118: 0
A119: 2.4.4.3 | C119: c) Power-floated finish (BNR Floor) | D119: m2 | E119: 872.33 | G119: 0
A120: 2.5 | B120: 8.5 | C120: JOINTS | G120: 0
A121: 2.5.1 | C121: 300mm wide Sikadur combiflex system by Sika (Alternative approved products may also be used) | D121: m | E121: 1280.00 | G121: 0
A122: 2.5.2 | C122: Bond breaker 2 coats white PVA paint | D122: m | E122: 376.36 | G122: 0
A123: 2.5.3 | C123: 10mm x 10mm Polysulfide joint sealant with primer complete with 10 x 10 form | D123: m | E123: 1138.00 | G123: 0
A124: 2.5.4 | C124: 230mm rearguard centre bulb PVC waterstop by Jayco (Alternative approved products may also be used) | D124: m | E124: 145.00 | G124: 0
A125: 2.6 | C125: PIPEWORK: See Drawing G206 for details | G125: 0
C126: Supply and install mild steel connector pipework to BNR Reactor, including, puddle pipes flange adaptors, etc complete. All steel pipes to be hot dipped galvanised coated. | D126: Prov Sum | E126: 1.00 | F126: 500,000.00 | G126: 500,000.00
A127: 2.6.1 | C127: A1 - 400mm Ø BELLMOUTH FL - FL = 500 | D127: No | E127: 2.00 | G127: 0
A128: 2.6.2 | C128: A2 - 400mm Ø MILD STEEL DISTANCE PIECE FLANGED BOTH ENDS | D128: No | E128: 2.00 | G128: 0
A129: 2.6.3 | C129: A3 - 400mm Ø x 90° MILD STEEL MEDIUM RADIUS BEND FLANGED BOTH ENDS | D129: No | E129: 2.00 | G129: 0
A130: 2.6.4 | C130: A4 - 400mm Ø SG IRON FLANGE ADAPTOR TO SUIT uPVC 400mmØ CLASS 9 PIPE | D130: No | E130: 2.00 | G130: 0
A131: 2.6.5 | C131: B1 - 300mm Ø BELLMOUTH | D131: No | E131: 1.00 | G131: 0
A132: 2.6.6 | C132: B2 - 300mm Ø MILD STEEL DISTANCE PIECE FLANGED | D132: No | E132: 1.00 | G132: 0
A133: 2.6.7 | C133: B3 - 300mmØ x 90° MILD STEEL MEDIUM RADIUS BEND | D133: No | E133: 1.00 | G133: 0
A134: 2.6.8 | C134: B4 - 300mmØ SG IRON FLANGE ADAPTOR TO SUIT uPVC 315mmØ CLASS 9 PIPE | D134: No | E134: 1.00 | G134: 0
A135: 2.6.9 | C135: C1 - 350mmØ x 90° MILD STEEL SHORT RADIUS BEND FLANGED BOTH ENDS
A136: 2.6.10 | C136: C2 - 350mm Ø MILD STEEL DISTANCE PIECE FLANGED BOTH ENDS | D136: No | E136: 2.00 | G136: =E136*F136 -> 0
A137: 2.6.11 | C137: C3 - 350mm Ø x 90° MILD STEEL MEDIUM RADIUS BEND FLANGED BOTH ENDS | D137: No | E137: 4.00 | G137: 0
A138: 2.6.12 | C138: C4 - 350mmØ MILD STEEL DISTANCE PIECE FLANGED BOTH ENDS | D138: No | E138: 2.00 | G138: 0
A139: 2.6.13 | C139: C5 - 350mm Ø SG IRON FLANGE ADAPTOR TO SUIT uPVC 315mm Ø CLASS 9 PIPE | D139: No | E139: 2.00 | G139: 0
A140: 2.6.14 | C140: D1 - 250mm Ø x 90° MILD STEEL SHORT RADIUS BEND FLANGED BOTH ENDS | D140: No | E140: 1.00 | G140: 0
A141: 2.6.15 | C141: D2 - 250mm Ø MILD STEEL DISTANCE PIECE FLANGED BOTH ENDS | D141: No | E141: 1.00 | G141: 0
A142: 2.6.16 | C142: D3 - 250mm Ø x 90° MILD STEEL MEDIUM RADIUS BEND FLANGED BOTH ENDS | D142: No | E142: 2.00 | G142: 0
A143: 2.6.17 | C143: D4 - 250mm Ø MILD STEEL DISTANCE PIECE FLANGED BOTH ENDS | D143: No | E143: 1.00 | G143: 0
A144: 2.6.18 | C144: D5 - 250mmØ SG IRON FLANGE ADAPTOR TO SUIT uPVC 200mmØ CLASS 9 PIPE | D144: No | E144: 1.00 | G144: 0
A145: 2.7 | C145: SUBSOIL DRAINAGE | G145: 0
A146: 2.7.1 | C146: 110 mm dia Perforated drainage pipe | D146: m | E146: 10.00 | G146: 0
A147: 2.7.2 | C147: SHEETING | G147: 0
A148: 2.7.2.1 | C148: 250 Micron polythene sheeting | D148: m2 | E148: 105.00 | G148: 0
A149: 2.7.3 | C149: MANHOLE | G149: 0
A150: 2.7.3.1 | C150: Standard precast concrete manhole 1000mm dia | D150: no | E150: 1.00 | G150: 0
A151: TOTAL SECTION 2 | G151: =SUM(G56:G150) -> 500,000.00
A152: 3 | C152: SECTION 3: CLARIFIERS
A153: 3.1 | B153: SANS 1200 DA | C153: EXCAVATION
A154: 3.1.1 | B154: 8.3.1 | C154: a) Remove top soil to a nominal depth of 150mm, stockpile and maintain
A155: 3.1.2 | C155: b) Excavate in all materials and use for embankments or backfill or dispose, as ordered
A156: 3.1.3 | C156: c) Extra over for | G156: =E156*F156 -> 0
A157: 3.1.3.1 | C157: 1) Intermediate excavation | D157: m3 | E157: 125.00 | G157: 0
A158: 3.1.3.2 | C158: 2) Hard rock excavation | D158: m3 | E158: 85.00 | G158: 0
A159: 3.1.4 | B159: 8.3.2 | G159: 0
A160: 3.1.4.1 | C160: a) Excavate for restricted foundations, footings and trenches in all materials and use for backfill or embankment or dispose | D160: m3 | E160: 32.03 | G160: 0
A161: 3.1.4.2 | C161: b) Extra over for | G161: 0
A162: 3.1.4.2.1 | C162: 1) Intermediate excavation | D162: m3 | E162: 29.00 | G162: 0
A163: 3.1.4.2.2 | C163: 2) Hard rock excavation | D163: m3 | E163: 15.00 | G163: 0
A164: 3.1.6 | B164: 8.3.4 | C164: Importing of materials from Commercial sources or from borrow pits for foundations | G164: 0
A165: 3.1.6.1 | C165: G7 / GS / 15 / 12 Compacted to 93% of Mod. AASHTO Density (Layer thickness: 150mm) | D165: m3 | E165: 411.17 | G165: 0
A166: 3.2 | B166: SANS 1200 G | C166: FORMWORK | G166: 0
C167: Note: 50mm chamfers to all corners included in formwork rates | G167: 0
A168: 3.2.1 | B168: 8.2.1 | C168: Rough vertical formwork to a degree of Accuracy III | G168: 0
A169: 3.2.1.1 | C169: 1.1m high floor side curved to radius 1750 | D169: m2 | E169: 13.86 | G169: 0
A170: 3.2.1.2 | C170: 0.3m high to inside footing curved to radius 7200 | D170: m2 | E170: 5.50 | G170: 0
A171: 3.2.2 | B171: 8.2.2 | C171: Smooth vertical formwork to a degree of Accuracy II
A172: 3.2.2.1 | C172: 0.3m high to outside footing curved to Radius 8200
A173: 3.2.2.2 | C173: 0.85m high to floor side curved to Radius 1500 | D173: m2 | E173: 30.00 | G173: =E173*F173 -> 0
A174: 3.2.2.3 | C174: 4.56m high to outside wall curved to Radius 7850 | D174: m2 | E174: 490.00 | G174: 0
A175: 3.2.2.4 | C175: 4.2m high to inside wall curved to Radius 7550 | D175: m2 | E175: 450.00 | G175: 0
A176: 3.2.2.5 | C176: 0.37m high to canal overflow wall curved to Radius 7150 | D176: m2 | E176: 50.00 | G176: 0
A177: 3.2.2.6 | C177: 0.37m high to canal overflow wall curved to Radius 7000 | D177: m2 | E177: 50.00 | G177: 0
A178: 3.2.2.7 | C178: 0.2m high to scour box floor | D178: m2 | E178: 10.00 | G178: 0
A179: 3.2.2.8 | C179: 5.37m high to scour box walls | D179: m2 | E179: 120.00 | G179: 0
A180: 3.2.2.9 | C180: 0.9m high to overflow box | D180: m2 | E180: 20.00 | G180: 0
A181: 3.2.3 | C181: Smooth horizontal formwork to a degree of Accuracy II | G181: 0
A182: 3.2.3.1 | C182: Canal overflow soffit | D182: m2 | E182: 50.00 | G182: 0
A183: 3.2.3.2 | C183: Overflow box soffit | D183: m2 | E183: 10.00 | G183: 0
A184: 3.2.4 | C184: Inclined Smooth formwork to a degree of Accuracy II | G184: 0
A185: 3.2.4.1 | C185: Canal overflow lip curved to Radius 7000 | D185: m2 | E185: 50.00 | G185: 0
A186: 3.2.5 | B186: 8.2.6 | C186: Box Out Holes/Form Voids | G186: 0
A187: 3.2.5.1 | C187: a) Small, circular, of diameter up to and including 0,35 m (irrespective of depth) | D187: No | E187: 10.00 | G187: 0
A188: 3.2.5.2 | C188: b) Small, square, of area up to and including 0,1 m² (irrespective of depth) | D188: No | E188: 8.00 | G188: 0
A189: 3.2.5.3 | C189: c) Large, circular, of diameter over 0,35 m up to and including 0,1 m² (irrespective of depth) | D189: No | E189: 10.00 | G189: 0
A190: 3.2.5.4 | C190: d) Large, square, of area over 0,1m² and up and including to 0,5 m ² (irrespective of depth) | D190: No | E190: 6.00 | G190: 0
A191: 3.3 | C191: REINFORCEMENT | G191: 0
A192: 3.3.1 | B192: 8.3.1 | C192: Mild Steel Bars | G192: 0
A193: 3.3.1.1 | C193: R10 | D193: t | E193: 2.40 | G193: 0
A194: 3.3.2 | B194: 8.3.1 | C194: High Tensile Steel | G194: 0
A195: 3.3.2.1 | C195: Y 10 | D195: t | E195: 4.46 | G195: 0
A196: 3.3.2.2 | C196: Y 12 | D196: t | E196: 5.44 | G196: 0
A197: 3.3.2.3 | C197: Y 16 | D197: t | E197: 6.50 | G197: 0
A198: 3.3.2.4 | C198: Y 20 | D198: t | E198: 8.50 | G198: 0
A199: 3.3.2.5 | C199: Y 25 | D199: t | E199: 8.50 | G199: 0
A200: 3.3.2.6 | C200: Y 32
A201: 3.3.2.7 | C201: Y 40
... 1140 more rows
